[Event "Titled Tuesday Blitz March 14 Early 2023"]
[White "Samaganova, Aleksandra"]
[Black "Simonovic, Miroslav"]
[WhiteFideId "13800221"]
[BlackFideId "919152"]
[WhiteElo "1858"]
[BlackElo "2042"]
[Result "1-0"]
[Round "11"]
[TimeControl "180+2"]
[Date "2023.03.14"]
[WhiteClock "0:00:02"]
[BlackClock "0:00:03"]

1. c4 {[%clk 0:03:00]}  c5 {[%clk 0:03:00]} 2. Nc3 {[%clk 0:03:00]}  Nc6 {[%clk 0:03:00]} 3. g3 {[%clk 0:02:59]}  g6 {[%clk 0:03:01]} 4. Bg2 {[%clk 0:03:00]}  Bg7 {[%clk 0:03:01]} 5. e3 {[%clk 0:03:00]}  e5 {[%clk 0:03:02]} 6. Nge2 {[%clk 0:03:00]}  Nge7 {[%clk 0:03:02]} 7. O-O {[%clk 0:03:01]}  O-O {[%clk 0:03:03]} 8. a3 {[%clk 0:03:00]}  d6 {[%clk 0:03:00]} 9. Rb1 {[%clk 0:03:01]}  a5 {[%clk 0:03:00]} 10. h3 {[%clk 0:03:00]}  Be6 {[%clk 0:03:00]} 11. Nd5 {[%clk 0:02:59]}  f5 {[%clk 0:02:50]} 12. Nec3 {[%clk 0:02:57]}  e4 {[%clk 0:02:47]} 13. d3 {[%clk 0:02:52]}  exd3 {[%clk 0:02:42]} 14. Qxd3 {[%clk 0:02:52]}  Ne5 {[%clk 0:02:42]} 15. Qe2 {[%clk 0:02:52]}  Nxd5 {[%clk 0:02:37]} 16. Nxd5 {[%clk 0:02:49]}  Rb8 {[%clk 0:02:23]} 17. b4 {[%clk 0:02:45]}  axb4 {[%clk 0:02:15]} 18. axb4 {[%clk 0:02:45]}  b6 {[%clk 0:02:15]} 19. Rd1 {[%clk 0:02:35]}  Qd7 {[%clk 0:02:02]} 20. Kh2 {[%clk 0:02:23]}  Qf7 {[%clk 0:02:00]} 21. Bb2 {[%clk 0:02:10]}  Rfd8 {[%clk 0:01:43]} 22. Qc2 {[%clk 0:01:43]}  Rdc8 {[%clk 0:01:32]} 23. Nf4 {[%clk 0:01:30]}  Bxc4 {[%clk 0:01:25]} 24. Rxd6 {[%clk 0:01:29]}  g5 {[%clk 0:01:13]} 25. Nd5 {[%clk 0:00:51]}  cxb4 {[%clk 0:01:08]} 26. Qxf5 {[%clk 0:00:20]}  Bd3 {[%clk 0:00:40]} 27. Qxf7+ {[%clk 0:00:12]}  Kxf7 {[%clk 0:00:40]} 28. Rd1 {[%clk 0:00:11]}  Bc2 {[%clk 0:00:20]} 29. Rd2 {[%clk 0:00:10]}  b3 {[%clk 0:00:19]} 30. Nxb6 {[%clk 0:00:09]}  Rc7 {[%clk 0:00:09]} 31. Bd5+ {[%clk 0:00:08]}  Kf8 {[%clk 0:00:07]} 32. Ba3 {[%clk 0:00:09]}  Ke8 {[%clk 0:00:07]} 33. Na4 {[%clk 0:00:03]}  Bf8 {[%clk 0:00:06]} 34. Re6+ {[%clk 0:00:03]}  Kf7 {[%clk 0:00:06]} 35. Rxe5+ {[%clk 0:00:03]}  Kf6 {[%clk 0:00:06]} 36. Re6+ {[%clk 0:00:03]}  Kg7 {[%clk 0:00:06]} 37. Bb2+ {[%clk 0:00:04]}  Kf7 {[%clk 0:00:04]} 38. Rb6+ {[%clk 0:00:03]}  Ke7 {[%clk 0:00:04]} 39. Rxb8 {[%clk 0:00:03]}  Rd7 {[%clk 0:00:03]} 40. Ba3+ {[%clk 0:00:03]}  Kf6 {[%clk 0:00:02]} 41. Rxf8+ {[%clk 0:00:03]}  Kg6 {[%clk 0:00:03]} 42. Be4+ {[%clk 0:00:02]}  Kg7 {[%clk 0:00:03]} 43. Rxd7+ {[%clk 0:00:02]}  Kh6 {[%clk 0:00:03]} 44. Rxh7# {[%clk 0:00:02]} 1-0


[Site "https://www.chess.com"]

[Event "Titled Tuesday Blitz March 14 Early 2023"]
[White "Barria Santos, Jose Guilherme"]
[Black "Comas Fabrego, Lluis"]
[WhiteFideId "1939300"]
[BlackFideId "2200325"]
[WhiteElo "2301"]
[BlackElo "2523"]
[Result "0-1"]
[Round "11"]
[TimeControl "180+2"]
[Date "2023.03.14"]
[WhiteClock "0:00:35"]
[BlackClock "0:00:09"]

1. e4 {[%clk 0:03:00]}  c5 {[%clk 0:02:59]} 2. Nf3 {[%clk 0:03:01]}  d6 {[%clk 0:02:58]} 3. d4 {[%clk 0:03:01]}  cxd4 {[%clk 0:02:58]} 4. Nxd4 {[%clk 0:03:02]}  Nf6 {[%clk 0:02:58]} 5. Nc3 {[%clk 0:03:03]}  g6 {[%clk 0:02:59]} 6. Be3 {[%clk 0:03:03]}  Bg7 {[%clk 0:02:59]} 7. f3 {[%clk 0:03:03]}  O-O {[%clk 0:02:59]} 8. Qd2 {[%clk 0:03:04]}  Nc6 {[%clk 0:02:59]} 9. Bc4 {[%clk 0:03:04]}  Bd7 {[%clk 0:02:58]} 10. O-O-O {[%clk 0:03:04]}  Ne5 {[%clk 0:02:56]} 11. Bb3 {[%clk 0:03:04]}  Qa5 {[%clk 0:02:53]} 12. Kb1 {[%clk 0:03:03]}  Rfc8 {[%clk 0:02:53]} 13. Nd5 {[%clk 0:02:53]}  Qxd2 {[%clk 0:02:52]} 14. Rxd2 {[%clk 0:02:46]}  Nxd5 {[%clk 0:02:44]} 15. Bxd5 {[%clk 0:02:45]}  Nc4 {[%clk 0:02:42]} 16. Bxc4 {[%clk 0:02:44]}  Rxc4 {[%clk 0:02:43]} 17. c3 {[%clk 0:02:38]}  b5 {[%clk 0:02:32]} 18. h4 {[%clk 0:02:37]}  h5 {[%clk 0:02:29]} 19. Nc2 {[%clk 0:02:28]}  a5 {[%clk 0:02:23]} 20. Na3 {[%clk 0:02:27]}  Rcc8 {[%clk 0:02:15]} 21. Nc2 {[%clk 0:02:22]}  Be6 {[%clk 0:02:08]} 22. Bd4 {[%clk 0:02:21]}  Bh6 {[%clk 0:02:05]} 23. Rdd1 {[%clk 0:02:19]}  Bc4 {[%clk 0:01:59]} 24. Be3 {[%clk 0:02:17]}  Bg7 {[%clk 0:01:57]} 25. Bd4 {[%clk 0:02:17]}  b4 {[%clk 0:01:31]} 26. Bxg7 {[%clk 0:02:16]}  Kxg7 {[%clk 0:01:31]} 27. b3 {[%clk 0:02:16]}  Be6 {[%clk 0:01:27]} 28. cxb4 {[%clk 0:02:16]}  a4 {[%clk 0:01:15]} 29. Kb2 {[%clk 0:02:12]}  axb3 {[%clk 0:01:09]} 30. axb3 {[%clk 0:02:12]}  Rab8 {[%clk 0:01:02]} 31. Rd3 {[%clk 0:02:03]}  Rc7 {[%clk 0:01:01]} 32. Rc3 {[%clk 0:02:01]}  Rxc3 {[%clk 0:00:56]} 33. Kxc3 {[%clk 0:02:01]}  Rc8+ {[%clk 0:00:56]} 34. Kb2 {[%clk 0:02:02]}  d5 {[%clk 0:00:56]} 35. Nd4 {[%clk 0:01:58]}  dxe4 {[%clk 0:00:45]} 36. Nxe6+ {[%clk 0:01:57]}  fxe6 {[%clk 0:00:46]} 37. fxe4 {[%clk 0:01:58]}  Rb8 {[%clk 0:00:42]} 38. Kc3 {[%clk 0:01:56]}  Rc8+ {[%clk 0:00:42]} 39. Kd3 {[%clk 0:01:56]}  Kf6 {[%clk 0:00:38]} 40. Kd4 {[%clk 0:01:49]}  e5+ {[%clk 0:00:35]} 41. Kd5 {[%clk 0:01:45]}  Rd8+ {[%clk 0:00:35]} 42. Kc5 {[%clk 0:01:44]}  Rd3 {[%clk 0:00:35]} 43. b5 {[%clk 0:01:40]}  Rxb3 {[%clk 0:00:34]} 44. b6 {[%clk 0:01:40]}  g5 {[%clk 0:00:33]} 45. hxg5+ {[%clk 0:01:34]}  Kxg5 {[%clk 0:00:34]} 46. Ra1 {[%clk 0:01:34]}  Kf4 {[%clk 0:00:28]} 47. Kd5 {[%clk 0:01:33]}  Rd3+ {[%clk 0:00:24]} 48. Kc4 {[%clk 0:01:30]}  Rd4+ {[%clk 0:00:24]} 49. Kc5 {[%clk 0:01:30]}  Kxe4 {[%clk 0:00:22]} 50. Rb1 {[%clk 0:01:30]}  Rd8 {[%clk 0:00:22]} 51. Kc6 {[%clk 0:01:28]}  Kf4 {[%clk 0:00:19]} 52. Kc7 {[%clk 0:01:28]}  Rg8 {[%clk 0:00:19]} 53. b7 {[%clk 0:01:29]}  e4 {[%clk 0:00:18]} 54. b8=Q {[%clk 0:01:21]}  Rxb8 {[%clk 0:00:18]} 55. Kxb8 {[%clk 0:01:17]}  e3 {[%clk 0:00:18]} 56. Kc7 {[%clk 0:01:16]}  e2 {[%clk 0:00:16]} 57. Kc6 {[%clk 0:01:05]}  Kg3 {[%clk 0:00:15]} 58. Kd5 {[%clk 0:01:04]}  Kxg2 {[%clk 0:00:15]} 59. Kd4 {[%clk 0:00:59]}  Kf2 {[%clk 0:00:13]} 60. Rb2 {[%clk 0:00:57]}  Kf1 {[%clk 0:00:13]} 61. Ke3 {[%clk 0:00:37]}  e1=Q+ {[%clk 0:00:12]} 62. Kf3 {[%clk 0:00:38]}  Qd1+ {[%clk 0:00:10]} 63. Kg3 {[%clk 0:00:35]}  Qd3+ {[%clk 0:00:09]} 64. Kf4 {[%clk 0:00:35]}  Qd4+ {[%clk 0:00:09]} 0-1


[Site "https://www.chess.com"]